bitfinex/quotes_ETHUSD_20241203
["timestamp","ask_amount","ask_price","bid_price","bid_amount"]
[1733225017637,3.02970711,3610.4,3609.6,0.2774]
[1733225017853,3.33267782,3610.4,3609.6,0.2774]
[1733225018790,1.6399,3610.3,3609.6,0.2774]
[1733225019881,1.107762,3610.9,3609.7,1.8686]
[1733225020045,1.6399,3611.3,3610.1,0.2774]
[1733225020382,0.16399,3611.2,3610.1,0.2774]
[1733225021354,0.55,3611.1,3610.1,0.2774]
[1733225022344,0.03462056,3611.0,3610.1,0.2774]
[1733225022568,0.55,3611.1,3610.1,0.2774]
[1733225022754,1.08835971,3611.1,3610.1,0.2774]
[1733225022951,1.12298028,3611.1,3610.1,0.2774]
[1733225023260,1.08835971,3611.1,3610.1,0.2774]
[1733225023640,1.12298028,3611.1,3610.1,0.2774]
[1733225023881,1.08835971,3611.1,3610.1,0.2774]
[1733225024080,1.08835971,3611.1,3609.7,0.56561379]
[1733225024081,0.55,3610.8,3610.2,0.2774]
[1733225025141,1.6431,3610.6,3609.8,0.2774]
[1733225025343,0.55,3610.5,3609.8,0.2774]
[1733225027676,0.55,3610.5,3608.7,0.2768]
[1733225028171,0.55,3610.5,3609.9,0.2768]
[1733225028394,0.21931,3610.4,3609.9,0.2768]
[1733225029146,0.21931,3610.4,3609.0,0.2768]
[1733225029375,0.55,3610.5,3609.0,0.60472654]
[1733225029694,0.55,3610.5,3609.8,0.2768]
[1733225030316,0.55,3610.8,3609.8,0.2768]
[1733225030790,0.55,3610.8,3609.7,0.2768]
[1733225033018,2.1037,3610.6,3609.7,0.2768]
[1733225033220,3.02970711,3610.3,3609.4,0.2768]
[1733225034203,0.55,3610.4,3609.4,0.2768]
[1733225035226,1.5537,3610.5,3609.4,0.2768]
[1733225038692,0.03462535,3610.4,3609.4,0.2768]
[1733225038928,0.55,3610.4,3609.4,0.2768]
[1733225039134,1.06334071,3610.4,3609.4,0.2768]
[1733225040336,0.55,3610.4,3609.5,0.0743]
[1733225040544,0.55,3610.7,3609.5,0.0743]
[1733225040839,0.55,3610.7,3609.4,0.2768]
[1733225040840,0.55,3610.7,3609.6,0.47368841]
[1733225041004,0.55,3610.7,3609.7,0.0743]
[1733225041192,3.02970711,3610.9,3610.3,0.56736645]
[1733225041388,3.51451682,3610.9,3610.3,0.56736645]
[1733225041597,1.6544,3611.1,3610.3,0.64166645]
[1733225042929,1.6544,3611.1,3610.3,0.0743]
[1733225043303,1.6544,3611.1,3610.4,0.2768]
[1733225044397,3.02970711,3611.3,3610.4,0.2768]
[1733225045021,0.55,3611.3,3610.4,0.2768]
[1733225045740,0.55,3611.3,3609.5,0.2768]
[1733225045903,0.55,3611.3,3609.7,0.2768]
[1733225046305,3.57970711,3611.3,3609.7,0.2768]
[1733225046615,3.57970711,3611.3,3610.4,0.2768]
[1733225049239,3.02970711,3611.3,3610.4,0.2768]
[1733225050007,1.5311,3611.4,3610.4,0.2768]
[1733225050325,1.6202,3611.8,3610.4,0.2768]
[1733225050552,2.08519071,3611.8,3610.4,0.2768]
[1733225050849,1.6309,3612.2,3610.6,0.2768]
[1733225051205,0.1554882,3612.3,3610.6,0.2768]
[1733225051405,1.7863882,3612.3,3610.6,0.2768]
[1733225051644,0.48160953,3612.2,3610.8,0.2768]
[1733225052044,0.1554882,3612.3,3610.8,0.2768]
[1733225052247,1.7863882,3612.3,3610.8,0.2768]
[1733225052432,0.61070433,3612.3,3611.0,0.2768]
[1733225052669,3.05067588,3612.8,3611.6,0.2768]
[1733225052843,3.02970711,3612.8,3611.6,0.2768]
[1733225053043,3.02970711,3612.8,3610.5,3.02970711]
[1733225053044,1.6557,3612.6,3610.5,0.70015871]
[1733225053268,1.6557,3612.6,3600.9,2.67311068]
[1733225053269,0.46966805,3612.7,3610.9,3.02970711]
[1733225053568,1.6557,3613.0,3611.5,0.55007809]
[1733225054172,3.02970711,3612.8,3611.5,0.55007809]
[1733225054375,1.66600713,3612.7,3611.5,0.55007809]
[1733225054561,0.55,3612.6,3611.5,0.55007809]
[1733225054730,0.55,3612.4,3611.5,0.55007809]
[1733225056606,0.03460713,3613.2,3611.5,0.55007809]
[1733225056742,1.5674,3613.3,3611.5,0.55007809]
[1733225057248,1.5674,3613.3,3611.6,0.02054966]
[1733225057892,3.02970711,3615.2,3613.0,3.30650711]
[1733225058046,3.02970711,3614.8,3613.0,0.2768]
[1733225058250,0.03459074,3614.7,3613.0,0.91221639]
[1733225059447,0.03459074,3614.7,3613.4,0.2768]
[1733225059759,0.03459074,3614.7,3612.6,1.18146278]
[1733225059760,1.616,3614.6,3612.6,1.18146278]
[1733225060089,1.65059178,3614.6,3612.6,1.18146278]
[1733225060304,0.46802989,3614.5,3612.6,1.18146278]
[1733225060503,0.55,3614.4,3613.3,0.2768]
[1733225061814,0.55,3614.5,3613.3,0.2768]
[1733225061966,1.616,3614.6,3613.4,0.02052432]
[1733225062514,1.5178,3615.0,3613.4,0.02052432]
[1733225062677,0.19362928,3614.9,3613.4,0.02052432]
[1733225062881,0.19362928,3614.9,3613.3,0.2768]
[1733225063086,0.19362928,3614.9,3613.4,0.2768]
[1733225063411,0.19362928,3614.9,3613.4,0.64598926]
[1733225064318,0.55,3614.8,3613.4,0.64598926]
[1733225064479,0.26799221,3614.8,3614.0,0.2768]
[1733225065209,1.5178,3615.0,3614.0,0.2768]
[1733225065422,1.5178,3615.0,3613.9,0.55669172]
[1733225065915,1.5178,3615.0,3613.5,0.2768]
[1733225066068,1.5178,3615.0,3613.7,0.2768]
[1733225066406,1.5178,3615.0,3613.7,0.64598926]
[1733225067114,1.6009,3615.7,3613.7,0.64598926]
[1733225067318,0.4820678,3615.6,3613.9,0.2768]
[1733225067619,0.55,3615.5,3613.9,0.2768]
[1733225070053,0.55,3615.3,3614.4,0.2768]
[1733225070236,1.5544,3614.8,3614.4,0.2768]
[1733225070541,1.00841071,3614.7,3614.4,0.2768]
[1733225070851,0.44281071,3614.8,3614.4,0.2768]
[1733225071145,0.44281071,3614.8,3613.9,1.1116]
[1733225071146,1.35251782,3615.0,3614.5,0.2768]
[1733225071477,3.02970711,3615.2,3614.5,0.2768]
[1733225072006,3.02970711,3615.2,3613.9,1.65420112]
[1733225072007,0.03458266,3615.1,3614.0,0.2768]
[1733225072209,0.30642898,3615.0,3614.0,0.2768]
[1733225072435,0.3410117,3615.0,3614.0,0.2768]
[1733225072643,0.55,3614.9,3614.0,0.2768]
[1733225072950,0.55,3615.1,3614.0,0.2768]
[1733225073250,0.35797071,3615.0,3614.0,0.2768]
[1733225074123,1.5084,3614.9,3614.0,0.2768]
[1733225074901,0.55,3614.8,3614.0,0.2768]
[1733225075132,0.56285115,3616.4,3614.2,0.2768]
[1733225075354,3.06428791,3615.8,3614.2,0.2768]
[1733225075520,0.32197761,3615.7,3614.2,0.2768]
[1733225076642,0.55,3615.6,3614.2,0.2768]
[1733225076819,0.55,3614.4,3614.3,0.2768]
[1733225077020,3.02970711,3614.5,3614.3,0.2768]
[1733225077342,0.55,3614.8,3614.3,0.2768]
[1733225077554,3.02970711,3615.3,3614.3,0.2768]
[1733225077723,3.02970711,3615.3,3614.5,0.2768]
[1733225078242,1.5064,3615.2,3614.5,0.2768]
[1733225079013,2.0984,3614.8,3614.2,0.2768]
[1733225079122,0.51281071,3614.7,3614.2,0.2768]
[1733225079466,1.5484,3614.9,3614.2,0.2768]
[1733225080138,1.5484,3614.9,3613.7,0.2768]
[1733225080342,1.5911,3615.2,3613.9,0.2768]
[1733225080650,1.5911,3615.2,3614.3,0.2768]
[1733225081134,1.6319,3615.8,3614.5,0.2768]
[1733225081336,4.66160711,3615.8,3614.5,0.2768]
[1733225082123,3.02970711,3615.4,3614.5,0.2768]
[1733225082323,1.6319,3615.3,3614.5,0.2768]
[1733225082956,0.03458027,3615.2,3614.5,0.2768]
[1733225083259,0.03458027,3615.2,3613.2,0.24362735]
[1733225083260,3.02970711,3615.0,3614.3,0.2768]
[1733225083572,0.1554882,3615.9,3614.3,0.2768]
[1733225083573,3.02970711,3615.5,3614.3,0.2768]
[1733225083868,3.02970711,3615.5,3614.5,0.2768]
[1733225084282,1.6186,3615.0,3614.5,0.2768]
[1733225084584,3.02970711,3614.7,3614.5,0.2768]
[1733225084872,3.02970711,3614.7,3613.9,0.2768]
[1733225085031,0.03458602,3614.6,3613.9,0.2768]
[1733225085234,1.6186,3614.5,3613.9,0.2768]
[1733225085662,1.6186,3614.5,3613.6,0.2768]
[1733225085864,0.46828931,3614.4,3613.6,0.2768]
[1733225088683,3.02970711,3614.7,3613.6,0.2768]
[1733225089206,3.02970711,3615.1,3613.8,0.2768]
[1733225089372,3.02970711,3615.1,3614.0,0.2768]
[1733225091364,3.02970711,3615.1,3614.2,0.2768]
[1733225091589,0.1554882,3615.9,3614.6,0.2768]
[1733225091590,3.02970711,3615.6,3614.6,0.2768]
[1733225092664,1.5794,3615.5,3614.6,0.2768]
[1733225096139,3.02970711,3615.2,3614.2,1.8104]
[1733225096452,3.02970711,3614.8,3614.2,1.8104]
[1733225097038,3.02970711,3614.8,3614.2,1.41640625]
[1733225097400,3.02970711,3615.2,3614.2,1.41640625]
[1733225097605,0.30642916,3615.1,3614.2,1.41640625]
[1733225097800,3.02970711,3615.2,3614.2,1.41640625]
[1733225098204,0.54464073,3615.3,3614.2,1.41640625]
[1733225098609,1.5794,3615.5,3614.2,1.41640625]
[1733225101043,0.03458171,3615.4,3614.2,1.41640625]
[1733225102632,1.5794,3615.5,3614.2,1.41640625]
[1733225102955,0.46436888,3615.4,3614.4,0.2768]
[1733225103361,3.02970711,3615.2,3614.4,0.2768]
[1733225103854,3.02970711,3615.2,3614.2,1.41640625]
[1733225103855,3.02970711,3615.2,3614.3,0.2768]
[1733225104345,0.46436888,3615.4,3614.5,0.2768]
[1733225104515,0.46436888,3615.4,3614.7,0.2768]
[1733225104851,3.02970711,3615.6,3614.7,0.2768]
[1733225105217,3.02970711,3615.6,3614.9,0.2768]
[1733225105957,1.5616,3615.8,3614.9,0.2768]
[1733225107211,0.03457811,3615.7,3614.9,0.2768]
[1733225107463,0.51271545,3615.7,3614.9,0.2768]
[1733225107642,3.02970711,3615.6,3614.9,0.2768]
[1733225107954,0.03457977,3615.5,3614.9,0.2768]
[1733225110579,3.02970711,3615.6,3614.9,0.2768]
[1733225110747,0.03457993,3615.5,3614.9,0.2768]
[1733225111288,3.02970711,3615.2,3614.4,1.5572]
[1733225111489,0.30297071,3615.1,3615.0,0.2768]
[1733225112165,1.563,3615.5,3615.0,0.2768]
[1733225112476,1.563,3615.5,3614.5,0.2768]
[1733225112996,0.03458002,3615.4,3614.5,0.2768]
[1733225113692,3.02970711,3615.2,3614.5,0.2768]
[1733225113986,0.30642871,3615.1,3614.5,0.2768]
[1733225117477,0.03458408,3615.0,3614.5,0.2768]
[1733225117675,1.94192871,3615.1,3614.5,0.2768]
[1733225117860,0.03458405,3615.0,3614.5,0.2768]
[1733225118053,1.94192871,3615.1,3614.6,0.2768]
[1733225118366,0.49716358,3615.0,3614.6,0.2768]
[1733225119049,0.49716358,3615.0,3614.3,0.2768]
[1733225120367,3.02970711,3614.8,3614.3,0.2768]
[1733225120553,3.02970711,3614.4,3613.7,0.2768]
[1733225120775,1.5294,3614.2,3613.7,0.2768]
[1733225120988,3.02970711,3614.0,3613.7,0.2768]
[1733225121451,3.02970711,3614.0,3613.3,0.2883413]
[1733225121452,1.5294,3613.8,3613.3,0.2883413]
[1733225121755,0.03460201,3613.7,3613.4,0.2768]
[1733225122402,1.5294,3613.6,3613.4,0.2768]
[1733225122550,0.19100389,3613.5,3613.4,0.2768]
[1733225122757,3.220711,3613.5,3613.4,0.2768]
[1733225123495,3.18610731,3613.5,3613.4,0.2768]
[1733225123793,3.18610731,3613.5,3612.4,0.2768]
[1733225123950,3.02970711,3613.5,3612.4,0.2768]
[1733225124610,1.5294,3613.6,3612.3,0.55]
[1733225124811,1.5294,3613.6,3612.4,1.8942]
[1733225125168,3.02970711,3613.9,3612.6,0.2768]
[1733225125481,3.02970711,3613.5,3612.8,0.2768]
[1733225125667,0.0345987,3613.4,3612.8,0.2768]
[1733225126069,0.0345987,3613.4,3612.4,1.50968017]
[1733225126306,1.6578,3613.8,3612.1,0.55]
[1733225126307,1.6578,3613.8,3612.6,0.2768]
[1733225127364,1.6578,3613.8,3612.4,0.2768]
[1733225128024,3.02970711,3613.5,3612.4,0.2768]
[1733225128193,0.03460133,3613.4,3612.4,0.2768]
[1733225128383,3.02970711,3613.5,3612.2,0.2768]
[1733225128779,1.6578,3613.8,3612.2,0.29734485]
[1733225129006,1.6578,3613.8,3612.4,0.2768]
[1733225129179,3.02970711,3613.9,3612.6,0.2768]
[1733225129379,3.49835782,3613.9,3613.0,0.2768]
[1733225130130,3.02970711,3614.3,3613.1,1.6465]
[1733225130286,3.02970711,3614.3,3613.4,0.2768]
[1733225130889,3.02970711,3614.3,3613.6,0.2768]
[1733225131687,3.02970711,3614.7,3613.6,0.2768]
[1733225131925,3.02970711,3614.7,3613.8,0.2768]
[1733225132427,3.02970711,3614.7,3613.8,0.46053]
[1733225133286,3.02970711,3614.3,3613.8,0.46053]
[1733225133487,0.03458812,3614.2,3613.8,0.46053]
[1733225133820,3.02970711,3614.3,3613.8,0.46053]
[1733225135124,3.02970711,3614.3,3613.8,0.2768]
[1733225135448,3.02970711,3614.3,3613.9,0.55]
[1733225135627,3.02970711,3614.7,3613.9,0.55]
[1733225136136,0.03458859,3614.6,3613.9,0.55]
[1733225138743,3.02970711,3614.7,3613.9,0.55]
[1733225138938,0.03458856,3614.6,3613.9,0.55]
[1733225139624,3.02970711,3614.3,3613.8,0.2768]
[1733225139826,3.02970711,3613.9,3613.8,0.2768]
[1733225144229,3.06430284,3613.9,3613.8,0.2768]
[1733225144737,3.02970711,3613.9,3613.8,0.2768]
[1733225145163,3.02258106,3613.9,3613.8,0.2768]
[1733225145340,3.48520898,3613.9,3613.8,0.2768]
[1733225146365,3.48520898,3613.9,3613.0,1.48387777]
[1733225146664,0.0345985,3613.8,3613.0,1.48387777]
[1733225147090,3.51980764,3613.9,3613.0,1.48387777]
[1733225147245,3.48520898,3613.9,3613.0,1.48387777]
[1733225147448,3.02258106,3613.9,3613.1,0.55]
[1733225147678,1.5691,3614.2,3613.1,0.55]
[1733225147882,3.02970711,3613.5,3612.1,0.22590255]
[1733225148187,1.5307,3613.4,3612.0,0.28775144]
[1733225148400,1.56530206,3613.4,3612.0,0.28775144]
[1733225148557,1.5307,3613.4,3612.0,0.28775144]
[1733225149547,1.5307,3613.4,3612.4,0.55]
[1733225149749,3.02970711,3613.1,3611.4,0.55]
[1733225149980,0.03460205,3613.0,3611.2,0.47760854]
[1733225150288,0.03460205,3613.0,3611.2,0.28778538]
[1733225150464,3.02970711,3613.1,3610.9,3.02970711]
[1733225150784,0.03460502,3613.0,3611.0,0.30297071]
[1733225151551,1.6476,3612.9,3611.0,0.30297071]
[1733225151755,0.03460629,3612.8,3611.1,0.55]
[1733225151952,1.6476,3612.9,3611.1,0.55]
[1733225152274,3.02970711,3613.1,3611.1,0.55]
[1733225152457,3.02970711,3613.1,3611.3,0.55]
[1733225152660,3.02970711,3613.1,3612.3,1.5735]
[1733225152877,4.67730711,3613.5,3612.3,1.5735]
[1733225153248,4.67730711,3613.5,3612.4,0.2768]
[1733225155519,1.6655,3613.8,3612.9,1.7977]
[1733225155674,1.6655,3613.8,3613.1,0.2768]
[1733225155873,3.02970711,3613.9,3613.1,0.2768]
[1733225156173,0.03459495,3614.0,3613.1,0.2768]
[1733225156691,1.6655,3614.1,3613.1,0.2768]
[1733225157196,0.03459558,3614.0,3613.1,0.2768]
[1733225157380,0.03459558,3614.0,3613.1,0.480047]
[1733225158375,1.6655,3614.1,3613.2,1.6515]
[1733225158789,3.06430268,3614.3,3612.3,3.02970711]
[1733225158977,3.02970711,3614.3,3612.4,0.55]
[1733225159159,1.5478,3614.4,3612.3,3.02970711]
[1733225159160,1.5478,3614.4,3613.2,0.54817799]
[1733225159373,5.36345996,3614.7,3613.2,0.54817799]
[1733225159837,3.02970711,3614.7,3613.2,0.54817799]
[1733225160864,3.02970711,3614.7,3613.3,0.55]
[1733225161821,3.02970711,3614.7,3613.4,1.1916]
[1733225161984,3.02970711,3614.7,3613.6,1.1916]
[1733225162711,1.6325,3614.9,3613.6,1.1916]
[1733225162907,3.02970711,3615.1,3613.6,1.1916]
[1733225163199,0.03458682,3615.0,3613.8,1.1916]
[1733225165190,1.6399,3614.6,3613.8,1.1916]
[1733225165398,1.67449029,3614.6,3613.8,1.1916]
[1733225166164,1.6399,3614.6,3613.8,1.1916]
[1733225166482,1.5826,3614.9,3613.8,1.1916]
[1733225166682,0.46123071,3614.8,3613.8,1.1916]
[1733225167168,0.03458852,3614.7,3613.8,1.1916]
[1733225167496,0.46123071,3614.8,3613.8,1.1916]
[1733225167894,0.03458852,3614.7,3613.8,1.1916]
[1733225168301,3.06429563,3614.7,3613.9,0.2768]
[1733225168479,3.02970711,3614.3,3613.9,0.2768]
[1733225168667,0.03459276,3614.2,3613.9,0.2768]
[1733225169189,1.5461,3614.1,3613.3,0.2768]
[1733225169394,3.02970711,3613.9,3613.3,0.2768]
[1733225169614,0.46104031,3613.8,3613.3,0.2768]
[1733225170307,0.46104031,3613.8,3613.4,0.2768]
[1733225170809,3.06430358,3613.9,3613.4,0.2768]
[1733225171171,3.06430358,3613.9,3613.0,0.2768]
[1733225171362,0.46104036,3613.8,3613.0,0.2768]
[1733225171567,0.03459813,3613.7,3613.0,0.2768]
[1733225171766,3.02970711,3613.9,3613.0,0.2768]
[1733225171997,3.06429987,3613.9,3613.0,0.2768]
[1733225172172,0.46103999,3613.8,3613.0,0.2768]
[1733225172377,3.06429987,3613.9,3613.0,0.2768]
[1733225172378,1.5461,3614.1,3613.0,0.2768]
[1733225172585,3.02970711,3614.3,3612.8,0.54475073]
[1733225172586,0.03459276,3614.3,3613.1,1.4684]
[1733225172908,1.6227,3614.5,3613.1,1.4684]
[1733225173272,0.90970711,3614.3,3613.1,1.4684]
[1733225173497,1.6227,3614.2,3613.1,1.4684]
[1733225173802,0.25324071,3614.1,3613.1,1.4684]
[1733225174003,3.02970711,3613.5,3613.1,0.2768]
[1733225174332,1.5244,3613.4,3613.1,0.2768]
[1733225177047,4.55410711,3613.4,3613.1,0.2768]
[1733225177170,1.607,3613.2,3613.1,0.2768]
[1733225177373,1.607,3613.1,3611.2,1.1916]
[1733225177669,0.84118164,3613.2,3611.2,1.1916]
[1733225177670,3.02970711,3612.2,3611.2,1.1916]
[1733225177874,1.607,3612.3,3611.2,1.1916]
[1733225180219,3.02970711,3612.6,3611.2,1.1916]
[1733225180596,3.02970711,3612.2,3611.2,1.1916]
[1733225180799,1.5683,3612.1,3611.2,1.1916]
[1733225180999,0.45980071,3612.0,3611.2,1.1916]
[1733225181243,3.02970711,3612.2,3611.2,1.1916]
[1733225183201,3.02970711,3612.2,3611.3,0.2768]
[1733225184309,1.5322,3612.1,3611.3,0.2768]
[1733225186632,3.02970711,3612.2,3611.3,0.2768]
[1733225186830,3.02970711,3612.2,3611.5,0.2768]
[1733225188915,1.6077,3612.1,3611.6,0.2768]
[1733225189827,1.6077,3612.1,3611.0,0.2768]
[1733225190030,3.02970711,3611.8,3611.0,0.2768]
[1733225190365,3.02970711,3611.8,3611.0,0.52296737]
[1733225190525,0.90970711,3611.8,3611.0,0.52296737]
[1733225197948,3.02970711,3611.4,3611.0,0.2768]
[1733225202638,3.02970711,3611.7,3611.0,0.2768]
[1733225205769,3.02970711,3611.7,3611.1,1.5772]
[1733225205967,1.5932,3612.1,3611.1,1.5772]
[1733225206284,3.02970711,3612.0,3611.1,1.5772]
[1733225207096,3.02970711,3612.0,3611.0,0.2768]
[1733225207097,1.107352,3612.6,3611.5,2.1272]
[1733225207296,0.2,3614.3,3612.0,3.02970711]
[1733225207297,1.5932,3614.0,3612.0,3.02970711]
[1733225207583,1.5932,3614.0,3612.1,0.93755358]
[1733225207584,1.106986,3613.5,3612.1,0.93755358]
[1733225207792,3.02970711,3613.4,3612.2,1.5772]
[1733225208584,3.02970711,3613.4,3612.3,0.2768]
[1733225208883,3.02970711,3613.4,3612.3,0.63953088]
[1733225209177,0.56482931,3613.3,3612.3,0.63953088]
[1733225215275,0.56482931,3613.3,3612.3,0.2768]
[1733225215477,1.5409,3612.9,3612.3,0.2768]
[1733225215666,3.02970711,3612.6,3612.0,0.2768]
[1733225216082,3.02970711,3612.3,3612.0,0.2768]
[1733225216305,0.30297071,3612.2,3612.0,0.2768]
[1733225216606,0.30297071,3612.2,3611.6,0.2768]
[1733225217104,3.02970711,3612.0,3611.6,0.2768]
[1733225217310,3.02970711,3611.7,3611.6,0.2768]
[1733225217687,3.02970711,3612.0,3611.2,0.2768]
[1733225217870,3.51696489,3612.0,3611.2,0.2768]
[1733225219340,0.48725778,3612.0,3611.2,0.2768]
[1733225219523,0.55451902,3612.4,3611.5,0.2768]
[1733225219840,0.55451902,3612.4,3611.7,0.2768]
[1733225220206,3.02970711,3612.8,3611.7,0.2768]
[1733225220903,1.5399,3613.0,3611.7,0.2768]
[1733225221250,0.45696071,3612.9,3611.7,0.2768]
[1733225228247,0.45696071,3612.9,3611.6,0.2768]
[1733225228449,0.45696071,3612.9,3610.9,0.56243597]
[1733225228450,0.45696071,3612.9,3611.8,0.2768]
[1733225228612,0.45696071,3612.9,3611.1,3.02970711]
[1733225228613,0.45696071,3612.9,3612.2,0.2768]
[1733225228813,1.5635,3613.4,3612.2,0.2768]
[1733225229238,3.02970711,3613.2,3612.2,0.2768]
[1733225230014,0.56360801,3612.9,3612.2,0.2768]
[1733225230219,0.56360801,3612.9,3612.3,1.8842]
[1733225230419,1.5635,3613.4,3612.3,1.8842]
[1733225230619,0.57001931,3613.3,3612.3,1.8842]
[1733225231157,1.106986,3613.5,3612.3,1.8842]
[1733225234132,1.106986,3613.5,3612.5,0.2768]
[1733225234332,1.5099,3614.1,3612.9,0.2768]
[1733225234569,2.616878,3614.1,3612.9,0.2768]
[1733225234872,2.616878,3614.1,3613.3,0.2768]
[1733225234873,1.106978,3614.1,3613.3,0.2768]
[1733225237356,4.65000711,3614.5,3613.4,0.2768]
[1733225237558,5.306095,3614.5,3613.5,1.8262]
[1733225237868,1.106805,3614.4,3613.5,1.8262]
[1733225238280,3.02970711,3614.1,3613.5,1.8262]
[1733225238874,3.02970711,3613.7,3613.3,0.2768]
[1733225239180,0.46123071,3613.6,3613.3,0.2768]
[1733225239670,0.46123071,3613.6,3613.0,0.2768]
[1733225239871,1.5826,3613.8,3613.0,0.2768]
[1733225240977,3.02970711,3614.0,3613.0,0.2768]
[1733225241535,0.56740021,3613.8,3613.0,0.2768]
[1733225245637,3.02970711,3613.2,3613.0,0.2768]
[1733225246687,3.02970711,3613.2,3612.3,0.2768]
[1733225246982,4.60070711,3612.4,3612.0,0.2768]
[1733225247543,4.60070711,3612.4,3611.6,0.2768]
[1733225248479,4.60070711,3612.4,3611.5,1.5005]
[1733225248480,4.60070711,3612.4,3611.5,1.23642821]
[1733225249787,3.02970711,3612.8,3611.5,1.23642821]
[1733225250096,0.46553071,3612.7,3611.5,1.23642821]
[1733225252221,3.02970711,3612.8,3611.8,0.2768]
[1733225252498,3.02970711,3612.8,3612.0,0.2768]
[1733225253959,1.5205,3614.1,3612.5,0.2768]
[1733225254261,3.02970711,3613.9,3612.8,0.55]
[1733225254460,0.45502071,3613.8,3612.9,1.6282]
[1733225254684,0.45502071,3613.8,3613.0,0.2768]
[1733225255560,1.5205,3614.1,3613.0,0.2768]
[1733225255898,3.02970711,3613.9,3613.0,0.2768]
[1733225258468,3.02970711,3613.5,3613.0,0.2768]
[1733225261213,0.55044956,3614.3,3613.3,0.2768]
[1733225261397,3.02970711,3614.6,3613.8,0.8268]
[1733225261707,0.30297071,3614.5,3613.8,0.8268]
[1733225263027,0.33064447,3614.5,3613.8,0.2768]
[1733225264016,0.33064447,3614.5,3613.1,0.2768]
[1733225265186,0.33064447,3614.5,3613.3,0.2768]
[1733225265389,0.33064447,3614.5,3613.5,0.2768]
[1733225265584,3.02970711,3615.1,3613.9,0.2768]
[1733225265787,0.02767376,3615.0,3614.1,0.2768]
[1733225266020,0.02767376,3615.0,3614.3,0.2768]
[1733225266226,0.30573809,3614.9,3614.3,0.2768]
[1733225267641,0.30573809,3614.9,3613.2,0.87656286]
[1733225267945,0.30573809,3614.9,3613.3,0.2768]
[1733225269141,0.02767376,3615.1,3613.3,0.2768]
[1733225269649,0.02767376,3615.3,3613.3,0.30446949]
[1733225269942,0.02767376,3615.3,3613.7,0.2768]
[1733225270152,3.02970711,3615.1,3613.7,0.2768]
[1733225270308,0.02767376,3615.0,3613.9,0.2768]
[1733225270508,0.30573809,3614.9,3613.9,0.2768]
[1733225270750,0.02767376,3614.8,3613.9,0.2768]
[1733225271331,0.02767376,3614.8,3613.7,0.2768]
[1733225272412,0.30573809,3614.9,3613.7,0.2768]
[1733225272649,3.05738087,3615.1,3613.9,0.2768]
[1733225272650,3.02970711,3615.1,3613.9,0.2768]
[1733225272965,3.05738087,3615.1,3613.9,0.2768]
[1733225274664,3.05738087,3615.1,3614.0,0.2768]
[1733225275564,3.05738087,3615.1,3613.9,0.2768]
[1733225276267,1.56227376,3615.0,3613.9,0.2768]
[1733225276460,0.45919809,3614.9,3613.9,0.2768]
[1733225276625,0.45919809,3614.9,3613.7,0.2768]
[1733225279353,0.45919809,3614.9,3613.9,0.2768]
[1733225280261,0.02767376,3614.8,3613.9,0.2768]
[1733225280461,0.45919809,3614.9,3613.9,0.2768]
[1733225281362,0.5051179,3614.8,3613.7,0.2768]
[1733225281536,1.56227376,3615.0,3613.9,0.2768]
[1733225281537,1.5346,3615.0,3613.9,0.2768]
[1733225282159,0.54697184,3614.6,3613.9,0.2768]
[1733225282574,0.02767376,3615.2,3613.9,0.2768]
[1733225282974,0.54243403,3614.8,3614.1,0.2768]
[1733225283579,1.54187376,3615.3,3614.1,0.2768]
[1733225283744,0.45715809,3615.2,3614.1,0.2768]
[1733225283949,0.45715809,3615.2,3613.9,0.2768]
[1733225284184,0.45715809,3615.2,3613.8,3.02970711]
[1733225284185,1.5142,3615.3,3614.3,0.2768]
[1733225285158,1.5142,3615.3,3614.4,0.2768]
[1733225286245,1.5142,3615.3,3614.1,0.2768]
[1733225286486,0.02767376,3615.8,3614.3,0.2768]
[1733225286487,1.537,3615.7,3614.3,0.2768]
[1733225286684,0.1720162,3615.6,3614.5,0.2768]
[1733225286975,0.1720162,3615.6,3614.4,0.55]
[1733225286976,0.1720162,3615.6,3614.7,0.2768]
[1733225287741,0.1720162,3615.6,3614.5,0.2768]
[1733225287952,0.1720162,3615.6,3614.4,0.55560474]
[1733225287953,1.537,3615.7,3614.7,0.2768]
[1733225288381,0.1554882,3615.9,3614.9,0.2768]
[1733225289375,0.1554882,3615.9,3615.1,0.2768]
[1733225289630,0.1554882,3615.9,3615.3,0.2768]
[1733225290598,0.1554882,3615.9,3614.8,0.2768]
[1733225290889,0.1554882,3615.9,3615.0,0.2768]
[1733225291094,0.1554882,3615.9,3615.2,0.2768]
[1733225292102,0.1554882,3615.9,3614.8,0.2768]
[1733225292103,0.02767376,3615.8,3614.8,0.2768]
[1733225292387,0.02767376,3615.8,3614.1,3.02970711]
[1733225292388,0.02767376,3615.8,3615.0,0.2768]
[1733225292757,0.02767376,3615.8,3615.2,0.2768]
[1733225293152,0.1554882,3615.9,3615.2,0.2768]
[1733225293550,1.5282,3615.7,3615.2,0.2768]
[1733225293792,1.75533263,3615.7,3614.7,0.2768]
[1733225293996,0.02767376,3615.6,3614.7,0.2768]
[1733225294496,0.2,3615.2,3613.2,3.02970711]
[1733225294674,3.22970711,3615.2,3614.2,0.56278576]
[1733225295266,0.1,3615.4,3614.2,0.56278576]
[1733225295462,0.1,3615.4,3614.3,0.2768]
[1733225295992,0.1,3615.4,3614.5,0.2768]
[1733225296199,0.50850397,3615.4,3614.5,0.2768]
[1733225296852,0.53617773,3615.4,3614.5,0.2768]
[1733225297303,3.22970711,3615.5,3614.5,0.2768]
[1733225297458,3.02970711,3615.5,3614.7,0.2768]
[1733225298794,3.18519531,3615.9,3615.1,0.2768]
[1733225298990,0.1,3615.8,3615.1,0.2768]
[1733225299168,0.35128691,3615.7,3615.1,0.2768]
[1733225299767,0.35128691,3615.7,3614.4,0.55]
[1733225299768,0.35128691,3615.7,3614.7,0.2768]
[1733225299998,0.35128691,3615.7,3614.4,0.55]
[1733225299999,3.28519531,3615.9,3614.9,0.2768]